fUSD/lending_fUSD_20240904
["ID","MTS","AMOUNT","RATE_DAILY","PERIOD"]
[337117402,1725439848639,-500.0,0.00014499,2]
[337117403,1725439848648,-500.0,0.00014499,2]
[337117404,1725439848657,-500.0,0.00014499,2]
[337117405,1725439848666,-500.0,0.00014499,2]
[337117406,1725439848676,-500.0,0.00014499,2]
[337117407,1725439848686,-500.0,0.00014499,2]
[337117408,1725439848695,-500.0,0.00014499,2]
[337117409,1725439848705,-500.0,0.00014499,2]
[337117410,1725439848714,-500.0,0.00014499,2]
[337117411,1725439848723,-500.0,0.00014499,2]
[337117412,1725439848733,-500.0,0.00014499,2]
[337117413,1725439848742,-500.0,0.00014499,2]
[337117414,1725439848751,-500.0,0.00014499,2]
[337117415,1725439848761,-500.0,0.00014499,2]
[337117416,1725439848770,-500.0,0.00014499,2]
[337117417,1725439848779,-500.0,0.00014499,2]
[337117418,1725439848788,-500.0,0.00014499,2]
[337117419,1725439848797,-500.0,0.00014499,2]
[337117420,1725439848806,-500.0,0.00014499,2]
[337117421,1725439848815,-500.0,0.00014499,2]
[337117422,1725439848825,-508.48680525,0.00014499,2]
[337117423,1725439848834,-500.0,0.00014499,2]
[337117424,1725439848844,-280.07467572,0.00014499,2]
[337117425,1725439848853,-500.0,0.00014499,2]
[337117426,1725439848863,-500.0,0.00014499,2]
[337117427,1725439848873,-500.0,0.00014499,2]
[337117428,1725439848883,-500.0,0.00014499,2]
[337117429,1725439848893,-500.0,0.00014499,2]
[337117430,1725439848902,-500.0,0.00014499,2]
[337117431,1725439848911,-500.0,0.00014499,2]
[337117432,1725439848921,-500.0,0.00014499,2]
[337117433,1725439848930,-500.0,0.00014499,2]
[337117434,1725439848939,-500.0,0.00014499,2]
[337117435,1725439848949,-500.0,0.00014499,2]
[337117436,1725439848958,-500.0,0.00014499,2]
[337117437,1725439848968,-500.0,0.00014499,2]
[337117438,1725439848978,-500.0,0.00014499,2]
[337117439,1725439848988,-500.0,0.00014499,2]
[337117440,1725439848997,-500.0,0.00014499,2]
[337117441,1725439849007,-500.0,0.00014499,2]
[337117442,1725439849017,-500.0,0.00014499,2]
[337117443,1725439849027,-500.0,0.00014499,2]
[337117444,1725439849037,-500.0,0.00014499,2]
[337117445,1725439849046,-500.0,0.00014499,2]
[337117446,1725439849055,-500.0,0.00014499,2]
[337117447,1725439849065,-500.0,0.00014499,2]
[337117448,1725439849074,-500.0,0.00014499,2]
[337117449,1725439849083,-500.0,0.00014499,2]
[337117450,1725439849093,-500.0,0.00014499,2]
[337117451,1725439849103,-500.0,0.00014499,2]
[337117452,1725439849113,-500.0,0.00014499,2]
[337117453,1725439849122,-500.0,0.00014499,2]
[337117454,1725439849131,-569.40524498,0.00014499,2]
[337117455,1725439849141,-500.0,0.00014499,2]
[337117456,1725439849150,-500.0,0.00014499,2]
[337117457,1725439849159,-500.0,0.00014499,2]
[337117458,1725439849168,-500.0,0.00014499,2]
[337117459,1725439849177,-500.0,0.00014499,2]
[337117460,1725439849187,-500.0,0.00014499,2]
[337117461,1725439849196,-201.54067029,0.00014499,2]
[337117462,1725439849205,-565.26310026,0.00014499,2]
[337117463,1725439849214,-458.13510054,0.00014499,2]
[337117464,1725439849223,-500.0,0.00014499,2]
[337117465,1725439849232,-500.0,0.00014499,2]
[337117466,1725439849242,-500.0,0.00014499,2]
[337117467,1725439849252,-500.0,0.00014499,2]
[337117468,1725439849261,-500.0,0.00014499,2]
[337117469,1725439849271,-500.0,0.00014499,2]
[337117470,1725439849280,-424.2174642,0.00014499,2]
[337117471,1725439849289,-150.0,0.00014499,2]
[337117472,1725439849300,-150.0,0.00014499,2]
[337117473,1725439849311,-150.0,0.00014499,2]
[337117474,1725439849321,-150.0,0.00014499,2]
[337117475,1725439849330,-150.0,0.00014499,2]
[337117476,1725439849340,-173.50247522,0.00014499,2]
[337117477,1725439849350,-500.0,0.00014499,2]
[337117478,1725439849360,-500.0,0.00014499,2]
[337117479,1725439849369,-500.0,0.00014499,2]
[337117480,1725439849380,-500.0,0.00014499,2]
[337117481,1725439849390,-500.0,0.00014499,2]
[337117482,1725439849399,-500.0,0.00014499,2]
[337117483,1725439849410,-500.0,0.00014499,2]
[337117484,1725439849420,-500.0,0.00014499,2]
[337117485,1725439849430,-324.55589383,0.00014499,2]
[337117486,1725439849440,-409.48393262,0.00014499,2]
[337117487,1725439849450,-500.0,0.00014499,2]
[337117488,1725439849461,-607.00436475,0.00014499,2]
[337117489,1725439849471,-500.0,0.00014499,2]
[337117490,1725439849482,-500.0,0.00014499,2]
[337117491,1725439849492,-500.0,0.00014499,2]
[337117492,1725439849503,-500.0,0.00014499,2]
[337117493,1725439849513,-500.0,0.00014499,2]
[337117494,1725439849524,-500.0,0.00014499,2]
[337117495,1725439849534,-500.0,0.00014499,2]
[337117496,1725439849544,-500.0,0.00014499,2]
[337117497,1725439849555,-500.0,0.00014499,2]
[337117498,1725439849565,-500.0,0.00014499,2]
[337117499,1725439849575,-500.0,0.00014499,2]
[337117500,1725439849586,-164.41052153,0.00014499,2]
[337117501,1725439849596,-500.0,0.00014499,2]
[337117502,1725439849606,-511.10891522,0.00014499,2]
[337117503,1725439849615,-466.16335112,0.00014499,2]
[337117504,1725439849626,-500.0,0.00014499,2]
[337117505,1725439849636,-500.0,0.00014499,2]
[337117506,1725439849650,-500.0,0.00014499,2]
[337117507,1725439849660,-631.85806501,0.00014499,2]
[337117508,1725439849671,-2452.73,0.00014499,2]
[337117509,1725439849682,-2452.73,0.00014499,2]
[337117510,1725439849692,-2452.73,0.00014499,2]
[337117511,1725439849703,-2452.73,0.00014499,2]
[337117512,1725439849714,-2452.73,0.00014499,2]
[337117513,1725439849725,-2452.73,0.00014499,2]
[337117514,1725439849739,-2452.73,0.00014499,2]
[337117515,1725439849754,-2452.73,0.00014499,2]
[337117516,1725439849766,-810.73,0.00014499,2]
[337117517,1725439849777,-810.73,0.00014499,2]
[337117518,1725439849787,-810.73,0.00014499,2]
[337117519,1725439849797,-810.73,0.00014499,2]
[337117520,1725439849807,-810.73,0.00014499,2]
[337117521,1725439849818,-810.73,0.00014499,2]
[337117522,1725439849828,-810.73,0.00014499,2]
[337117523,1725439849839,-742.37,0.00014499,2]
[337117524,1725439849849,-810.73,0.00014499,2]
[337117525,1725439849860,-742.37,0.00014499,2]
[337117526,1725439849870,-742.37,0.00014499,2]
[337117527,1725439849880,-742.37,0.00014499,2]
[337117528,1725439849891,-742.37,0.00014499,2]
[337117529,1725439849901,-742.37,0.00014499,2]
[337117530,1725439849911,-742.37,0.00014499,2]
[337117531,1725439849922,-742.37,0.00014499,2]
[337117532,1725439849932,-309.362648,0.00014499,2]
[337117533,1725439849943,-1841.57,0.00014499,2]
[337117534,1725439849954,-1841.57,0.00014499,2]
[337117535,1725439849964,-1841.57,0.00014499,2]
[337117536,1725439849974,-1841.57,0.00014499,2]
[337117537,1725439849984,-1841.57,0.00014499,2]
[337117538,1725439849993,-1841.57,0.00014499,2]
[337117539,1725439850003,-1841.57,0.00014499,2]
[337117540,1725439850013,-1841.57,0.00014499,2]
[337117541,1725439850022,-500.0,0.00014499,2]
[337117542,1725439850031,-500.0,0.00014499,2]
[337117543,1725439850041,-500.0,0.00014499,2]
[337117544,1725439850051,-500.0,0.00014499,2]
[337117545,1725439850062,-500.0,0.00014499,2]
[337117546,1725439850072,-500.0,0.00014499,2]
[337117547,1725439850082,-500.0,0.00014499,2]
[337117548,1725439850093,-500.0,0.00014499,2]
[337117549,1725439850103,-500.0,0.00014499,2]
[337117550,1725439850113,-500.0,0.00014499,2]
[337117551,1725439850123,-309.362648,0.00014499,2]
[337117552,1725439850132,-500.0,0.00014499,2]
[337117553,1725439850143,-500.0,0.00014499,2]
[337117554,1725439850154,-500.0,0.00014499,2]
[337117555,1725439850164,-500.0,0.00014499,2]
[337117556,1725439850174,-500.0,0.00014499,2]
[337117557,1725439850184,-500.0,0.00014499,2]
[337117558,1725439850194,-450.49174866,0.00014499,2]
[337117559,1725439850204,-500.0,0.00014499,2]
[337117560,1725439850214,-500.0,0.00014499,2]
[337117561,1725439850223,-500.0,0.00014499,2]
[337117562,1725439850233,-1643.26,0.00014499,2]
[337117563,1725439850243,-1643.26,0.00014499,2]
[337117564,1725439850253,-451.54634186,0.00014499,2]
[337117565,1725439850264,-1643.26,0.00014499,2]
[337117566,1725439850274,-1643.26,0.00014499,2]
[337117567,1725439850284,-1643.26,0.00014499,2]
[337117568,1725439850294,-1643.26,0.00014499,2]
[337117569,1725439850308,-151.0,0.00014499,2]
[337117570,1725439850317,-1643.26,0.00014499,2]
[337117571,1725439850327,-1643.26,0.00014499,2]
[337117572,1725439850337,-500.0,0.00014499,2]
[337117573,1725439850348,-500.0,0.00014499,2]
[337117574,1725439850358,-500.0,0.00014499,2]
[337117575,1725439850369,-500.0,0.00014499,2]
[337117576,1725439850379,-500.0,0.00014499,2]
[337117577,1725439850389,-250.67424773,0.00014499,2]
[337117578,1725439850399,-576.97433027,0.00014499,2]
[337117579,1725439850409,-1018.97,0.00014499,2]
[337117580,1725439850419,-1018.97,0.00014499,2]
[337117581,1725439850429,-1018.97,0.00014499,2]
[337117582,1725439850439,-1018.97,0.00014499,2]
[337117583,1725439850449,-1018.97,0.00014499,2]
[337117584,1725439850459,-1018.97,0.00014499,2]
[337117585,1725439850469,-500.0,0.00014499,2]
[337117586,1725439850479,-1018.97,0.00014499,2]
[337117587,1725439850490,-500.0,0.00014499,2]
[337117588,1725439850500,-1018.97,0.00014499,2]
[337117589,1725439850511,-500.0,0.00014499,2]
[337117590,1725439850520,-500.0,0.00014499,2]
[337117591,1725439850531,-500.98729719,0.00014499,2]
[337117592,1725439850541,-633.65293342,0.00014499,2]
[337117593,1725439850551,-727.31,0.00014499,2]
[337117594,1725439850561,-727.31,0.00014499,2]
[337117595,1725439850571,-727.31,0.00014499,2]
[337117596,1725439850581,-727.31,0.00014499,2]
[337117597,1725439850592,-500.0,0.00014499,2]
[337117598,1725439850602,-727.31,0.00014499,2]
[337117599,1725439850612,-500.0,0.00014499,2]
[337117600,1725439850623,-500.0,0.00014499,2]
[337117601,1725439850633,-727.31,0.00014499,2]
[337117602,1725439850643,-500.0,0.00014499,2]
[337117603,1725439850654,-727.31,0.00014499,2]
[337117604,1725439850664,-500.0,0.00014499,2]
[337117605,1725439850674,-727.31,0.00014499,2]
[337117606,1725439850684,-500.0,0.00014499,2]
[337117607,1725439850694,-500.0,0.00014499,2]
[337117608,1725439850705,-500.0,0.00014499,2]
[337117609,1725439850716,-2292.11,0.00014499,2]
[337117610,1725439850726,-2292.11,0.00014499,2]
[337117611,1725439850737,-2292.11,0.00014499,2]
[337117612,1725439850747,-2292.11,0.00014499,2]
[337117613,1725439850757,-2292.11,0.00014499,2]
[337117614,1725439850768,-2292.11,0.00014499,2]
[337117615,1725439850778,-2292.11,0.00014499,2]
[337117616,1725439850788,-2292.11,0.00014499,2]
[337117617,1725439850798,-500.0,0.00014499,2]
[337117618,1725439850808,-179.34277344,0.00014499,2]
[337117619,1725439850818,-500.0,0.00014499,2]
[337117620,1725439850829,-500.0,0.00014499,2]
[337117621,1725439850840,-500.0,0.00014499,2]
[337117622,1725439850850,-500.0,0.00014499,2]
[337117623,1725439850860,-500.0,0.00014499,2]
[337117624,1725439850870,-500.0,0.00014499,2]
[337117625,1725439850879,-347.65767674,0.00014499,2]
[337117626,1725439850890,-277.67994926,0.00014499,2]
[337117627,1725439850900,-500.0,0.00014499,2]
[337117628,1725439850911,-558.46636259,0.00014499,2]
[337117629,1725439850920,-500.0,0.00014499,2]
[337117630,1725439850930,-500.0,0.00014499,2]
[337117631,1725439850939,-500.0,0.00014499,2]
[337117632,1725439850949,-500.0,0.00014499,2]
[337117633,1725439850959,-500.0,0.00014499,2]
[337117634,1725439850969,-500.0,0.00014499,2]
[337117635,1725439850979,-500.0,0.00014499,2]
[337117636,1725439850989,-80.68757221,0.00014499,2]
[337117637,1725439851822,-419.31242779,0.00014499,2]
[337117638,1725439851831,-110.72225932,0.00014499,2]
[337117639,1725439851847,-389.27774068,0.00014499,2]
[337117640,1725439851857,-500.0,0.00014499,2]
[337117641,1725439851867,-454.31103126,0.00014499,2]
[337117642,1725439852082,-45.68896874,0.00014499,2]
[337117643,1725439852092,-500.0,0.00014499,2]
[337117644,1725439852103,-389.43103126,0.00014499,2]
[337117645,1725439852115,-110.56896874,0.00014499,2]
[337117646,1725439852125,-252.7678709,0.00014499,2]
[337117647,1725439852135,-247.2321291,0.00014499,2]
[337117648,1725439852145,-500.0,0.00014499,2]
[337117649,1725439852154,-148.55774415,0.00014499,2]
[337117650,1725439852165,-301.616,0.00014499,2]
[337117651,1725439852176,-292.56625585,0.00014499,2]
[337117652,1725439852185,-742.74,0.00014499,2]
[337117653,1725439852194,-742.74,0.00014499,2]
[337117654,1725439852203,-742.74,0.00014499,2]
[337117655,1725439852212,-20.52759735,0.00014499,2]
[337117656,1725439852222,-722.21240265,0.00014499,2]
[337117657,1725439852232,-151.0,0.00014499,2]
[337117658,1725439852241,-407.82447177,0.00014499,2]
[337117659,1725439852252,-334.91552823,0.00014499,2]
[337117660,1725439852261,-97.9810101,0.00014499,2]
[337117661,1725439852272,-644.7589899,0.00014499,2]
[337117662,1725439852281,-151.0,0.00014499,2]
[337117663,1725439852290,-321.52418255,0.00014499,2]
[337117664,1725439852307,-421.21581745,0.00014499,2]
[337117665,1725439852316,-500.0,0.00014499,2]
[337117666,1725439852325,-500.0,0.00014499,2]
[337117667,1725439852334,-334.15770389,0.00014499,2]
[337117668,1725439852345,-165.84229611,0.00014499,2]
[337117669,1725439852354,-500.0,0.00014499,2]
[337117670,1725439852363,-161.46704157,0.00014499,2]
[337117671,1725439852376,-338.53295843,0.00014499,2]
[337117672,1725439852385,-500.0,0.00014499,2]
[337117673,1725439852394,-500.0,0.00014499,2]
[337117674,1725439852403,-500.0,0.00014499,2]
[337117675,1725439852413,-500.0,0.00014499,2]
[337117676,1725439852422,-500.0,0.00014499,2]
[337117677,1725439852431,-500.0,0.00014499,2]
[337117678,1725439852439,-500.0,0.00014499,2]
[337117679,1725439852448,-500.0,0.00014499,2]
[337117680,1725439852457,-106.70445096,0.00014499,2]
[337117681,1725439852469,-393.29554904,0.00014499,2]
[337117682,1725439852478,-500.0,0.00014499,2]
[337117683,1725439852487,-500.0,0.00014499,2]
[337117684,1725439852497,-500.0,0.00014499,2]
[337117685,1725439852507,-500.0,0.00014499,2]
[337117686,1725439852516,-500.0,0.00014499,2]
[337117687,1725439852526,-500.0,0.00014499,2]
[337117688,1725439852536,-500.0,0.00014499,2]
[337117689,1725439852546,-500.0,0.00014499,2]
[337117690,1725439852555,-500.0,0.00014499,2]
[337117691,1725439852565,-500.0,0.00014499,2]
[337117692,1725439852574,-500.0,0.00014499,2]
[337117693,1725439852583,-210.25195252,0.00014499,2]
[337117694,1725439852593,-500.0,0.00014499,2]
[337117695,1725439852602,-500.0,0.00014499,2]
[337117696,1725439852611,-500.0,0.00014499,2]
[337117697,1725439852620,-500.0,0.00014499,2]
[337117698,1725439852630,-500.0,0.00014499,2]
[337117699,1725439852639,-548.34,0.00014499,2]
[337117700,1725439852648,-593.5762188,0.00014499,2]
[337117701,1725439852657,-548.34,0.00014499,2]
[337117702,1725439852666,-548.34,0.00014499,2]
[337117703,1725439852675,-548.34,0.00014499,2]
[337117704,1725439852684,-548.34,0.00014499,2]
[337117705,1725439852693,-548.34,0.00014499,2]
[337117706,1725439852702,-548.34,0.00014499,2]
[337117707,1725439852711,-548.34,0.00014499,2]
[337117708,1725439852721,-500.0,0.00014499,2]
[337117709,1725439852730,-376.42175597,0.00014499,2]
[337117710,1725439852741,-123.57824403,0.00014499,2]
[337117711,1725439852750,-337.73768343,0.00014499,2]
[337117712,1725439852759,-247.85407254,0.00014499,2]
[337117713,1725439852771,-398.99592746,0.00014499,2]
[337117714,1725439852780,-230.52138486,0.00014499,2]
[337117715,1725439852794,-416.32861514,0.00014499,2]
[337117716,1725439852804,-646.85,0.00014499,2]
[337117717,1725439852813,-646.85,0.00014499,2]
[337117718,1725439852823,-646.85,0.00014499,2]
[337117719,1725439852832,-646.85,0.00014499,2]
[337117720,1725439852842,-646.85,0.00014499,2]
[337117721,1725439852851,-646.85,0.00014499,2]
[337117722,1725439852860,-500.0,0.00014499,2]
[337117723,1725439852869,-573.60800153,0.00014499,2]
[337117724,1725439852879,-301.255573,0.00014499,2]
[337117725,1725439852889,-500.0,0.00014499,2]
[337117726,1725439852898,-500.0,0.00014499,2]
[337117727,1725439852907,-500.0,0.00014499,2]
[337117728,1725439852915,-574.62543655,0.00014499,2]
[337117729,1725439852924,-500.0,0.00014499,2]
[337117730,1725439852933,-500.0,0.00014499,2]
[337117731,1725439852942,-500.0,0.00014499,2]
[337117732,1725439852951,-500.0,0.00014499,2]
[337117733,1725439852960,-500.0,0.00014499,2]
[337117734,1725439852969,-500.0,0.00014499,2]
[337117735,1725439852978,-500.0,0.00014499,2]
[337117736,1725439852987,-500.0,0.00014499,2]
[337117737,1725439852997,-500.0,0.00014499,2]
[337117738,1725439853006,-500.0,0.00014499,2]
[337117739,1725439853016,-95.51934579,0.00014499,2]
[337117740,1725439853027,-315.53025998,0.00014499,2]
[337117741,1725439853978,-88.95039423,0.00014499,2]
[337117742,1725439853987,-500.0,0.00014499,2]
[337117743,1725439853996,-500.0,0.00014499,2]
[337117744,1725439854006,-9.80012049,0.00014499,2]
[337117745,1725439854021,-490.19987951,0.00014499,2]
[337117746,1725439854032,-500.0,0.00014499,2]
[337117747,1725439854041,-112.96100297,0.00014499,2]
[337117748,1725439854053,-341.04,0.00014499,2]
[337117749,1725439854063,-45.99899703,0.00014499,2]
[337117750,1725439854073,-500.0,0.00014499,2]
[337117751,1725439854082,-477.82417378,0.00014499,2]
[337117752,1725439854093,-22.17582622,0.00014499,2]
[337117753,1725439854103,-500.0,0.00014499,2]
[337117754,1725439854112,-500.0,0.00014499,2]
[337117755,1725439854123,-500.0,0.00014499,2]
[337117756,1725439854132,-497.94417378,0.00014499,2]
[337117757,1725439854143,-2.05582622,0.00014499,2]
[337117758,1725439854152,-410.11947568,0.00014499,2]
[337117759,1725439854163,-89.88052432,0.00014499,2]
[337117760,1725439854172,-248.75928884,0.00014499,2]
[337117761,1725439854183,-251.24071116,0.00014499,2]
[337117762,1725439854192,-279.61921017,0.000145,2]
[337117763,1725439854210,-816.38078983,0.000145,2]
[337117764,1725439854219,-4683.61921017,0.000145,3]
[337117765,1725439854231,-471.44131326,0.000145,3]
[337117766,1725439854243,-3455.53409534,0.000145,3]
[337117767,1725439854254,-605.70812265,0.000145,3]
[337117768,1725439854265,-5859.8,0.000145,3]
[337117769,1725439854285,-767.14366818,0.000145,3]
[337117770,1725439854296,-589.37436581,0.000145,3]
[337117771,1725439854310,-2005.80185951,0.000145,3]
[337117772,1725439854324,-2754.31674355,0.000145,3]
[337117773,1725439854335,-671.32315737,0.000145,3]
[337117774,1725439854350,-4202.89669979,0.000145,3]
[337117775,1725439854361,-1307333.77649828,0.000145,3]
[337117776,1725439854778,-13413.68580089,0.000145,3]
[337117777,1725439854788,-1657.21148328,0.000145,3]
[337117778,1725439854799,-462.25138963,0.000145,3]
[337117779,1725439854827,-376.58731798,0.000145,3]
[337117780,1725439854838,-3578.38314441,0.000145,3]
[337117781,1725439854849,-360.99458743,0.000145,3]
[337117782,1725439854867,-1462.76416002,0.000145,3]
[337117783,1725439854879,-157928.3802,0.000145,3]
[337117784,1725439854889,-288.0248386,0.000145,3]
[337117785,1725439854900,-1000.0,0.000145,3]
[337117786,1725439854919,-16344.51668327,0.000145,3]
[337117787,1725439854929,-1373.16223695,0.000145,3]
[337117788,1725439854940,-285.60453231,0.000145,3]
[337117789,1725439854958,-55747.21617718,0.000145,3]
[337117790,1725439854968,-4643.55379647,0.000145,3]
[337117791,1725439854979,-86110.23799385,0.000145,3]
[337117792,1725439854989,-2064.39225517,0.000145,3]
[337117793,1725439855000,-109684.32219062,0.000145,3]
[337117794,1725439855014,-470.08,0.000145,3]
[337117795,1725439855025,-3678.56594504,0.000145,3]
[337117796,1725439855036,-442.82396974,0.000145,3]
[337117797,1725439855047,-9673.94992461,0.000145,3]
[337117798,1725439855057,-891.94150928,0.000145,3]
[337117799,1725440103065,550.0,0.00011,2]
[337117800,1725440104155,600.0,0.00013,2]
[337117801,1725440145822,214.29,0.00011569,2]
[337117802,1725440660599,203.57,0.00011498,2]
[337117813,1725440947303,-165.47941094,0.00013391,2]
[337117814,1725440947325,-250.0,0.0001341,2]
[337117815,1725440947348,-258.84,0.0001341,2]
[337117816,1725440947369,-250.0,0.00013416,2]
[337117817,1725440947391,-800.0,0.00013433,2]
[337117818,1725440947413,-250.17,0.0001347,2]
[337117819,1725440947434,-200.0,0.00013491,2]
[337117820,1725440947455,-492.590661,0.000135,16]
[337117826,1725441031808,-150.33,0.00013585,2]
[337117827,1725441031818,-175.7,0.00013699,2]
[337117828,1725441031827,-160.58,0.00013699,2]
[337117829,1725441031836,-89.41,0.00013699,2]
[337117830,1725441031864,-410.59,0.00013699,2]
[337117831,1725441031873,-912.69,0.00013762,2]
[337117832,1725441031884,-203.57,0.00013762,2]
[337117833,1725441031893,-505.58612769,0.00014,4]
[337117834,1725441031903,-421.15547501,0.00014109,2]
[337117835,1725441031912,-58.12987135,0.00014234,2]
[337117844,1725441038057,-292.98522865,0.00014234,2]
[337117845,1725441038066,-272.720468,0.00014247,2]
[337117846,1725441038076,-153.125453,0.00014333,2]
[337117847,1725441038085,-153.125453,0.00014333,2]
[337117848,1725441038095,-47.14412546,0.00014333,2]
[337117862,1725441040190,-121.29387454,0.00014333,2]
[337117863,1725441040200,-153.125453,0.00014333,2]
[337117864,1725441040209,-168.438,0.00014334,2]
[337117865,1725441040218,-153.125453,0.00014334,2]
[337117866,1725441040227,-980.002904,0.00014354,2]
[337117867,1725441040236,-155.0,0.00014358,2]
[337117868,1725441040245,-119.01428546,0.000144,2]
[337117882,1725441045968,-73.70087575,0.000144,2]
[337117883,1725441045978,-251.30911425,0.000144,2]
[337117884,1725441045989,-1155.66544305,0.000144,2]
[337117885,1725441045999,-1406.97455726,0.00014456,2]
[337117886,1725441046008,-187.67243642,0.0001447,2]
[337117887,1725441046017,-641.10026689,0.00014471,2]
[337117888,1725441046138,-489.08677373,0.00014471,2]
[337117889,1725441046149,-2621.36630183,0.00014489,3]
[337117890,1725441046158,-500.0,0.00014489,2]
[337117891,1725441046167,-200.35236989,0.00014489,2]
[337117892,1725441046177,-239.7,0.00014489,2]
[337117893,1725441046187,-500.0,0.00014489,2]
[337117894,1725441046196,-500.0,0.00014498,2]
[337117895,1725441046205,-513.32,0.00014498,2]
[337117896,1725441046214,-150.0,0.00014498,2]
[337117897,1725441046223,-186.01656598,0.00014499,2]
[337117898,1725441046232,-6334.00598857,0.00014499,2]
[337117899,1725441174022,2167.5,0.000135,2]
[337117900,1725441183830,253.18,0.00011634,2]
[337117901,1725441289858,220.76,0.00010959,2]
[337117902,1725441331840,201.24993197,0.00013446,2]
[337117904,1725441677684,201.24993196,0.00013446,2]
[337117905,1725441715346,640.0,0.00013496,2]
[337117906,1725441773709,240.52,0.00011628,2]
[337117907,1725441829441,178.35,0.00010959,2]
[337117908,1725441894829,165.47941094,0.00013433,2]
[337117909,1725441908924,1964.99501647,0.000135,2]
[337117910,1725441918935,550.0,0.00011,2]
[337117911,1725441920093,600.0,0.00013,2]
[337117912,1725441935491,229.14769212,0.0001,2]
[337117913,1725441936627,12023.94,0.00013455,2]
[337117914,1725441937305,461.79468298,9.5e-05,2]
[337117915,1725441952612,2234.75326162,0.00010988,2]
[337117916,1725441952636,25000.0,0.00010988,2]
[337117917,1725441952662,11190.48039806,0.00010988,2]
[337117923,1725442045817,245.41907981,0.000101,2]
[337117955,1725442231969,-199.86,0.00013533,2]
[337117957,1725442231978,-245.87298462,0.00013546,2]
[337117959,1725442231993,-4.12701538,0.00013546,2]
[337117960,1725442232003,-157.6,0.00013546,2]
[337117961,1725442232013,-254.8,0.00013546,2]
[337117962,1725442232022,-488.0,0.00013546,2]
[337117963,1725442232032,-175.7,0.00013699,2]
[337117964,1725442232044,-500.0,0.00013699,2]
[337117965,1725442232053,-160.58,0.00013699,2]
[337117966,1725442232064,-240.52,0.00013892,2]
[337117967,1725442232074,-245.448421,0.00013973,2]
[337117968,1725442232083,-5306.1132017,0.00014,2]
[337117969,1725442232095,-689.30241408,0.00014,2]
[337117970,1725442232110,-1070.70537865,0.00014,2]
[337117971,1725442232121,-6933.87900557,0.00014,2]
[337117972,1725442232130,-421.15547501,0.00014186,2]
[337117973,1725442232139,-175.02623466,0.0001428,2]
[337117974,1725442232149,-360.93264728,0.00014289,2]
[337117975,1725442232158,-300.0,0.00014349,2]
[337117976,1725442232167,-1948.65953,0.0001435,2]
[337117977,1725442232176,-594.126761,0.00014354,2]
[337117978,1725442232185,-150.0,0.00014369,2]
[337117979,1725442232195,-254107.513981,0.0001437,2]
[337117980,1725442232204,-151.38,0.0001437,2]
[337117981,1725442232213,-151.38,0.0001437,2]
[337117982,1725442232222,-151.38,0.0001437,2]
[337117983,1725442232233,-151.38,0.0001437,2]
[337117984,1725442232243,-151.38,0.0001437,2]
[337117985,1725442232253,-151.38,0.0001437,2]
[337117986,1725442232263,-151.38,0.00014371,2]
[337117987,1725442232272,-151.38,0.00014371,2]
[337117989,1725442232281,-151.38,0.00014371,2]
[337117991,1725442232292,-151.38,0.00014371,2]